bitfinex/quotes_BTCUSD_20250601
["timestamp","ask_amount","ask_price","bid_price","bid_amount"]
[1748744310626,2.46227924,104100.0,104090.0,1.15524924]
[1748744311241,2.45727924,104100.0,104090.0,1.15524924]
[1748744311604,2.45227924,104100.0,104090.0,0.74400924]
[1748744311796,2.45227924,104100.0,104090.0,1.15524924]
[1748744312047,2.45227924,104100.0,104090.0,1.17044924]
[1748744312199,1.95697924,104100.0,104090.0,1.17044924]
[1748744312602,1.95697924,104100.0,104090.0,1.18614924]
[1748744314303,1.95697924,104100.0,104090.0,1.17036924]
[1748744314712,1.95697924,104100.0,104090.0,0.85932924]
[1748744314939,1.95697924,104100.0,104090.0,0.6720158]
[1748744315145,1.95697924,104100.0,104090.0,1.0831758]
[1748744315602,1.95697924,104100.0,104090.0,1.0679758]
[1748744316950,1.95697924,104100.0,104090.0,1.0839358]
[1748744317161,1.95697924,104100.0,104090.0,1.16044702]
[1748744319547,1.95697924,104100.0,104090.0,0.84944702]
[1748744319770,1.95697924,104100.0,104090.0,1.0678558]
[1748744322459,1.95697924,104100.0,104090.0,1.0678158]
[1748744336416,1.95697924,104100.0,104090.0,1.0675358]
[1748744338487,1.95697924,104100.0,104090.0,1.0674958]
[1748744338747,1.95697924,104100.0,104090.0,1.16000702]
[1748744339306,1.95697924,104100.0,104090.0,1.1792246]
[1748744342786,1.95697924,104100.0,104090.0,1.08671338]
[1748744343265,1.95697924,104100.0,104090.0,0.67603338]
[1748744343470,1.96658455,104100.0,104090.0,0.7270158]
[1748744343707,1.95697924,104100.0,104090.0,0.6311615]
[1748744343881,1.96658455,104100.0,104090.0,0.6311615]
[1748744344511,1.98579573,104100.0,104090.0,0.6311615]
[1748744344708,1.97619005,104100.0,104090.0,0.2209615]
[1748744345030,1.99540178,104100.0,104090.0,0.2209615]
[1748744345333,0.02881981,104090.0,104080.0,0.19214401]
[1748744345534,0.2335707,104090.0,104080.0,0.21135962]
[1748744345750,0.04803385,104090.0,104080.0,0.53136715]
[1748744345971,0.04142942,104090.0,104080.0,0.54097459]
[1748744346194,0.05103649,104090.0,104080.0,0.54097459]
[1748744346421,0.02221557,104090.0,104080.0,0.54097459]
[1748744346626,0.04142924,104090.0,104080.0,0.55058193]
[1748744346836,0.0384266,104090.0,104080.0,0.55058193]
[1748744347039,0.02881972,104090.0,104080.0,0.55058193]
[1748744347265,0.05766172,104090.0,104080.0,0.55058193]
[1748744347511,0.028842,104090.0,104080.0,0.63483089]
[1748744347744,0.028842,104090.0,104080.0,0.32443089]
[1748744347968,0.05105713,104090.0,104080.0,0.55058193]
[1748744348185,0.02221513,104090.0,104080.0,0.55058193]
[1748744348432,0.02221504,104090.0,104080.0,0.55058193]
[1748744348855,0.02221504,104090.0,104080.0,0.55465919]
[1748744349459,0.01260871,104090.0,104080.0,0.55465919]
[1748744350777,2.49732942,104100.0,104090.0,0.2209615]
[1748744350985,2.51654143,104100.0,104090.0,0.2209615]
[1748744351615,2.52614757,104100.0,104090.0,0.2209615]
[1748744351786,2.52614757,104100.0,104090.0,0.21135508]
[1748744351985,2.52914757,104100.0,104090.0,0.23056819]
[1748744352526,2.71166502,104100.0,104090.0,0.22096168]
[1748744352724,2.76166502,104100.0,104090.0,0.22096168]
[1748744353155,2.56954207,104100.0,104090.0,0.23056819]
[1748744353356,2.56854207,104100.0,104090.0,0.23056819]
[1748744353556,2.56654207,104100.0,104090.0,0.54088819]
[1748744353703,2.55693593,104100.0,104090.0,0.54088819]
[1748744353956,2.54732932,104100.0,104090.0,0.55049461]
[1748744354168,2.49732932,104100.0,104090.0,0.55049461]
[1748744354384,2.48772364,104100.0,104090.0,0.55049461]
[1748744354597,2.47811824,104100.0,104090.0,0.55049461]
[1748744354787,2.48772355,104100.0,104090.0,0.55049461]
[1748744355013,2.47811824,104100.0,104090.0,0.55049461]
[1748744355686,2.44927924,104100.0,104090.0,0.55049461]
[1748744356088,2.44927924,104100.0,104090.0,0.63473447]
[1748744356511,2.44927924,104100.0,104090.0,0.73058877]
[1748744356718,2.44927924,104100.0,104090.0,0.64634891]
[1748744357947,2.44927924,104100.0,104090.0,0.33602891]
[1748744358161,2.44927924,104100.0,104090.0,0.64626891]
[1748744363490,2.44927924,104100.0,104090.0,0.64618891]
[1748744363714,2.44927924,104100.0,104090.0,0.66128891]
[1748744364125,2.44927924,104100.0,104090.0,0.35112891]
[1748744364330,2.44927924,104100.0,104090.0,0.56539461]
[1748744364534,2.44927924,104100.0,104090.0,0.56739461]
[1748744365113,2.44927924,104100.0,104090.0,0.56639461]
[1748744365333,2.44927924,104100.0,104090.0,0.56739461]
[1748744365532,2.44927924,104100.0,104090.0,0.56839461]
[1748744365748,2.44927924,104100.0,104090.0,0.25827461]
[1748744365956,2.44927924,104100.0,104090.0,0.56639461]
[1748744366162,2.44927924,104100.0,104090.0,0.55325461]
[1748744366388,2.46497924,104100.0,104090.0,0.55325461]
[1748744366795,2.46497924,104100.0,104090.0,0.55225461]
[1748744367001,2.44927924,104100.0,104090.0,0.55225461]
[1748744367199,2.44927924,104100.0,104090.0,0.55325461]
[1748744369181,2.45888455,104100.0,104090.0,0.55325461]
[1748744369386,2.44927924,104100.0,104090.0,0.55325461]
[1748744369743,2.44927924,104100.0,104090.0,0.56905461]
[1748744372440,2.44927924,104100.0,104090.0,0.58415461]
[1748744376173,2.44927924,104100.0,104090.0,0.58399461]
[1748744377687,2.44927924,104100.0,104090.0,0.56889461]
[1748744381273,2.44927924,104100.0,104090.0,0.56689461]
[1748744381737,2.44927924,104100.0,104090.0,0.56889461]
[1748744381952,2.44927924,104100.0,104090.0,0.57089461]
[1748744382873,2.44927924,104100.0,104090.0,0.56789461]
[1748744383213,2.44927924,104100.0,104090.0,0.67033461]
[1748744383649,2.44927924,104100.0,104090.0,0.75810247]
[1748744383839,2.44927924,104100.0,104090.0,0.67033461]
[1748744386427,2.44927924,104100.0,104090.0,0.65453461]
[1748744388125,2.44927924,104100.0,104090.0,0.66128384]
[1748744388333,2.44927924,104100.0,104090.0,0.35136384]
[1748744388534,2.44927924,104100.0,104090.0,0.65429461]
[1748744388754,2.44927924,104100.0,104090.0,0.66104406]
[1748744388962,2.44927924,104100.0,104090.0,0.56160406]
[1748744389160,2.44927924,104100.0,104090.0,0.55485461]
[1748744389372,2.44927924,104100.0,104090.0,0.55860419]
[1748744389802,2.44927924,104100.0,104090.0,0.59070419]
[1748744390053,2.44927924,104100.0,104090.0,0.67893301]
[1748744390272,2.44927924,104100.0,104090.0,0.68293305]
[1748744390658,2.44927924,104100.0,104090.0,0.68293328]
[1748744390857,2.44927924,104100.0,104090.0,0.67893328]
[1748744391060,2.44927924,104100.0,104090.0,0.68193328]
[1748744391416,2.44927924,104100.0,104090.0,0.68193358]
[1748744391618,2.44927924,104100.0,104090.0,0.67518343]
[1748744391870,2.44927924,104100.0,104090.0,0.2840247]
[1748744392082,2.44927924,104100.0,104090.0,0.5936647]
[1748744392291,2.44927924,104100.0,104090.0,0.59366522]
[1748744392747,2.44927924,104100.0,104090.0,0.58691461]
[1748744392951,2.44927924,104100.0,104090.0,0.59366522]
[1748744393958,2.44927924,104100.0,104090.0,0.58691461]
[1748744394086,2.44927924,104100.0,104090.0,0.59366518]
[1748744394307,2.44927924,104100.0,104090.0,0.59366515]
[1748744394722,2.44927924,104100.0,104090.0,0.59366516]
[1748744394919,2.44927924,104100.0,104090.0,0.59366515]
[1748744395769,2.44927924,104100.0,104090.0,0.59366516]
[1748744396122,2.44927924,104100.0,104090.0,0.59366511]
[1748744396698,2.44927924,104100.0,104090.0,0.27727461]
[1748744396929,2.44927924,104100.0,104090.0,0.59354511]
[1748744397449,2.44927924,104100.0,104090.0,0.68205802]
[1748744397648,2.44927924,104100.0,104090.0,0.68205804]
[1748744398291,2.44927924,104100.0,104090.0,0.67530752]
[1748744398496,2.44927924,104100.0,104090.0,0.68205804]
[1748744398929,2.44927924,104100.0,104090.0,0.59354513]
[1748744399133,2.44927924,104100.0,104090.0,0.58679461]
[1748744399782,2.44927924,104100.0,104090.0,0.57764527]
[1748744399985,2.44927924,104100.0,104090.0,0.55469461]
[1748744400183,2.44927924,104100.0,104090.0,0.56144527]
[1748744400628,2.44927924,104100.0,104090.0,0.56144538]
[1748744401864,2.44927924,104100.0,104090.0,0.55469461]
[1748744402063,2.44927924,104100.0,104090.0,0.56144553]
[1748744402526,2.44927924,104100.0,104090.0,0.56144571]
[1748744403210,2.44927924,104100.0,104090.0,0.56144577]
[1748744403452,2.44927924,104100.0,104090.0,0.65369461]
[1748744403684,2.44927924,104100.0,104090.0,0.73580476]
[1748744404155,2.44927924,104100.0,104090.0,0.66044578]
[1748744404384,2.44927924,104100.0,104090.0,0.6604458]
[1748744404614,2.44927924,104100.0,104090.0,0.65369461]
[1748744404835,2.44927924,104100.0,104090.0,0.74954891]
[1748744405026,2.44927924,104100.0,104090.0,0.75630008]
[1748744405264,2.44927924,104100.0,104090.0,0.74954891]
[1748744405507,2.44927924,104100.0,104090.0,0.84881135]
[1748744405946,2.44927924,104100.0,104090.0,0.84881115]
[1748744406154,2.44927924,104100.0,104090.0,0.44029115]
[1748744406355,2.44927924,104100.0,104090.0,0.84877109]
[1748744406711,2.44927924,104100.0,104090.0,0.84877099]
[1748744408091,2.44927924,104100.0,104090.0,0.84876949]
[1748744408294,2.44927924,104100.0,104090.0,0.84876945]
[1748744409298,2.44927924,104100.0,104090.0,0.84876845]
[1748744409619,2.44927924,104100.0,104090.0,0.84876779]
[1748744409972,2.44927924,104100.0,104090.0,0.75625657]
[1748744410188,2.44927924,104100.0,104090.0,0.75625651]
[1748744410355,2.44927924,104100.0,104090.0,0.77245651]
[1748744410776,2.44927924,104100.0,104090.0,0.77245599]
[1748744411270,2.44927924,104100.0,104090.0,0.78805599]
[1748744411702,2.44927924,104100.0,104090.0,0.78130891]
[1748744411913,2.44927924,104100.0,104090.0,0.78805561]
[1748744412733,2.44927924,104100.0,104090.0,0.88056683]
[1748744412934,2.44927924,104100.0,104090.0,0.88056656]
[1748744413390,2.44927924,104100.0,104090.0,0.88056657]
[1748744413614,2.44927924,104100.0,104090.0,0.78805535]
[1748744414226,2.44927924,104100.0,104090.0,0.78130891]
[1748744414976,2.44927924,104100.0,104090.0,0.78805515]
[1748744415184,2.44927924,104100.0,104090.0,0.78130891]
[1748744415399,2.44927924,104100.0,104090.0,0.78805512]
[1748744415602,2.44927924,104100.0,104090.0,0.76510891]
[1748744416770,2.44927924,104100.0,104090.0,0.78020891]
[1748744417322,2.44927924,104100.0,104090.0,0.87946632]
[1748744417520,2.44927924,104100.0,104090.0,0.78695508]
[1748744418420,2.44927924,104100.0,104090.0,0.78695502]
[1748744419906,2.44927924,104100.0,104090.0,0.78667502]
[1748744420138,2.44927924,104100.0,104090.0,0.78667501]
[1748744420339,2.44927924,104100.0,104090.0,0.78667511]
[1748744420692,2.44927924,104100.0,104090.0,0.78667514]
[1748744421328,2.44927924,104100.0,104090.0,0.77992891]
[1748744421534,2.44927924,104100.0,104090.0,0.78635527]
[1748744421734,2.44927924,104100.0,104090.0,0.78635537]
[1748744421906,2.44927924,104100.0,104090.0,0.78635538]
[1748744422542,2.44927924,104100.0,104090.0,0.78635547]
[1748744423178,2.44927924,104100.0,104090.0,0.78635559]
[1748744423385,2.44927924,104100.0,104090.0,0.77960891]
[1748744423587,2.44927924,104100.0,104090.0,0.78635572]
[1748744423794,2.44927924,104100.0,104090.0,0.77960891]
[1748744424003,2.44927924,104100.0,104090.0,0.78635572]
[1748744424205,2.44927924,104100.0,104090.0,0.77960891]
[1748744424409,2.44927924,104100.0,104090.0,0.87212013]
[1748744424625,2.44927924,104100.0,104090.0,0.76400891]
[1748744424825,2.44927924,104100.0,104090.0,0.75565589]
[1748744425033,2.44927924,104100.0,104090.0,0.74890891]
[1748744425954,2.44927924,104100.0,104090.0,0.75553589]
[1748744426240,2.44927924,104100.0,104090.0,0.75553627]
[1748744426821,2.44927924,104100.0,104090.0,0.84804749]
[1748744427513,2.44927924,104100.0,104090.0,0.84804785]
[1748744428046,2.44927924,104100.0,104090.0,0.84804797]
[1748744428243,2.44927924,104100.0,104090.0,0.84130013]
[1748744428443,2.44927924,104100.0,104090.0,0.75553729]
[1748744428664,2.44927924,104100.0,104090.0,0.74878891]
[1748744429401,2.44927924,104100.0,104090.0,0.75553719]
[1748744429844,2.44927924,104100.0,104090.0,0.75553706]
[1748744430488,1.95397924,104100.0,104090.0,1.09553706]
[1748744430702,1.95397924,104100.0,104090.0,1.20258866]
[1748744431530,1.95397924,104100.0,104090.0,1.19584098]
[1748744431765,1.95397924,104100.0,104090.0,1.20258299]
[1748744432204,1.95397924,104100.0,104090.0,1.20258298]
[1748744432410,1.95397924,104100.0,104090.0,1.19584098]
[1748744434437,1.93093608,104100.0,104090.0,1.19584098]
[1748744434672,1.93093608,104100.0,104090.0,1.20258317]
[1748744435297,1.93093608,104100.0,104090.0,1.19584098]
[1748744435500,1.93093608,104100.0,104090.0,1.20258134]
[1748744436035,1.93093608,104100.0,104090.0,1.20258146]
[1748744436459,1.93093608,104100.0,104090.0,1.20258148]
[1748744436859,1.93093608,104100.0,104090.0,1.20258011]
[1748744437405,1.93093608,104100.0,104090.0,1.19584098]
[1748744437628,1.93093608,104100.0,104090.0,1.2025801]
[1748744437848,1.93093608,104100.0,104090.0,1.20257998]
[1748744438070,1.93093608,104100.0,104090.0,1.20257907]
[1748744438298,1.93093608,104100.0,104090.0,1.19584098]
[1748744438726,1.93093608,104100.0,104090.0,1.20257907]
[1748744438989,1.93093608,104100.0,104090.0,1.20257884]
[1748744439200,1.93093608,104100.0,104090.0,1.20257819]
[1748744439797,1.93093608,104100.0,104090.0,1.6174575]
[1748744440599,1.93093608,104100.0,104090.0,1.61745728]
[1748744441045,1.93093608,104100.0,104090.0,1.61745699]
[1748744441252,1.93093608,104100.0,104090.0,1.61072098]
[1748744441945,1.93093608,104100.0,104090.0,1.61745681]
[1748744442135,1.93093608,104100.0,104090.0,1.61072098]
[1748744443722,1.93093608,104100.0,104090.0,1.61745664]
[1748744443941,1.93093608,104100.0,104090.0,1.61072098]
[1748744444392,1.93093608,104100.0,104090.0,1.61745647]
[1748744444622,1.93093608,104100.0,104090.0,1.61745648]
[1748744444834,1.93093608,104100.0,104090.0,1.61072098]
[1748744445122,1.93093608,104100.0,104090.0,1.61745647]
[1748744445326,1.93093608,104100.0,104090.0,1.61072098]
[1748744445529,1.93093608,104100.0,104090.0,1.61745648]
[1748744446139,1.93093608,104100.0,104090.0,1.61745641]
[1748744446972,1.93093608,104100.0,104090.0,1.61745639]
[1748744447393,1.93093608,104100.0,104090.0,1.61072098]
[1748744447803,1.93093608,104100.0,104090.0,1.61745626]
[1748744447974,1.93093608,104100.0,104090.0,1.61072098]
[1748744448177,1.93093608,104100.0,104090.0,1.61745614]
[1748744448693,1.93093608,104100.0,104090.0,1.61745618]
[1748744448848,1.93093608,104100.0,104090.0,1.61745616]
[1748744449238,1.93093608,104100.0,104090.0,1.61745615]
[1748744449651,1.93093608,104100.0,104090.0,1.61072098]
[1748744449853,1.93093608,104100.0,104090.0,1.61745619]
[1748744450326,1.93093608,104100.0,104090.0,1.6174562]
[1748744451300,1.93093608,104100.0,104090.0,1.61745657]
[1748744451835,1.93093608,104100.0,104090.0,1.61745714]
[1748744452266,1.93093608,104100.0,104090.0,1.61745721]
[1748744452585,1.93093608,104100.0,104090.0,1.61072098]
[1748744452787,1.93093608,104100.0,104090.0,1.61745719]
[1748744452993,1.93093608,104100.0,104090.0,1.61072098]
[1748744453196,1.93093608,104100.0,104090.0,1.61745839]
[1748744453654,1.93093608,104100.0,104090.0,1.61072098]
[1748744453811,1.93093608,104100.0,104090.0,1.61745843]
[1748744454252,1.93093608,104100.0,104090.0,1.61745841]
[1748744454597,1.93093608,104100.0,104090.0,1.6174581]
[1748744454805,1.93093608,104100.0,104090.0,1.61745808]
[1748744454983,1.93093608,104100.0,104090.0,1.61745805]
[1748744455360,1.93093608,104100.0,104090.0,1.61745722]
[1748744456166,1.93093608,104100.0,104090.0,1.61745783]
[1748744456373,1.93093608,104100.0,104090.0,1.61072098]
[1748744456600,1.93093608,104100.0,104090.0,1.61745781]
[1748744456778,1.93093608,104100.0,104090.0,1.61245781]
[1748744456990,1.93093608,104100.0,104090.0,1.61645632]
[1748744456991,1.92193636,104100.0,104090.0,1.61645632]
[1748744457204,1.92193636,104100.0,104090.0,1.60972098]
[1748744457413,1.92193636,104100.0,104090.0,1.61645632]
[1748744457825,1.92193636,104100.0,104090.0,1.60972098]
[1748744457963,1.87585453,104100.0,104090.0,1.61945712]
[1748744458170,1.87585453,104100.0,104090.0,1.61272098]
[1748744458370,1.87585453,104100.0,104090.0,1.61945703]
[1748744459046,1.87585453,104100.0,104090.0,1.61945705]
[1748744459445,1.87585453,104100.0,104090.0,1.61272098]
[1748744459653,1.87585453,104100.0,104090.0,1.61945945]
[1748744460421,1.87585453,104100.0,104090.0,1.61945803]
[1748744460858,1.87585453,104100.0,104090.0,1.61945809]
[1748744461075,1.87585453,104100.0,104090.0,1.61945832]
[1748744461509,1.87585453,104100.0,104090.0,1.61272098]
[1748744461692,1.87585453,104100.0,104090.0,1.61945746]
[1748744461889,1.87585453,104100.0,104090.0,1.31049746]
[1748744462092,1.87585453,104100.0,104090.0,1.61200098]
[1748744462340,1.87585453,104100.0,104090.0,1.61873746]
[1748744462853,1.87585453,104100.0,104090.0,1.64082398]
[1748744463101,1.87585453,104100.0,104090.0,1.6475599]
[1748744463888,1.87585453,104100.0,104090.0,1.64082398]
[1748744464105,1.87585453,104100.0,104090.0,1.6475598]
[1748744464521,1.87585453,104100.0,104090.0,1.64082398]
[1748744464739,1.87585453,104100.0,104090.0,1.64755978]
[1748744464912,1.87585453,104100.0,104090.0,1.64755753]
[1748744465137,1.87585453,104100.0,104090.0,1.64755739]
[1748744465523,1.87585453,104100.0,104090.0,1.64082398]
[1748744465732,1.87585453,104100.0,104090.0,1.6475574]
[1748744466511,1.87585453,104100.0,104090.0,1.64755593]
[1748744467113,1.86087453,104100.0,104090.0,1.64082398]
[1748744467277,1.86087453,104100.0,104090.0,1.64755589]
[1748744467477,1.86087453,104100.0,104090.0,1.64082398]
[1748744468017,1.86087453,104100.0,104090.0,1.64755591]
[1748744468460,1.86087453,104100.0,104090.0,1.64755585]
[1748744468672,1.29318766,104100.0,104090.0,1.61504463]
[1748744468843,1.28550899,104100.0,104090.0,1.60831276]
[1748744469250,1.28550899,104100.0,104090.0,1.61504186]
[1748744469251,1.27783032,104100.0,104090.0,1.61504186]
[1748744469495,1.27783032,104100.0,104090.0,1.61104186]
[1748744469628,1.27015165,104100.0,104090.0,1.61804186]
[1748744470228,1.26247298,104100.0,104090.0,1.61804186]
[1748744470412,1.26247298,104100.0,104090.0,1.61803674]
[1748744470643,1.25479431,104100.0,104090.0,1.61803675]
[1748744471136,1.24711564,104100.0,104090.0,1.6180334]
[1748744471276,1.23943697,104100.0,104090.0,1.61537189]
[1748744471484,1.23943697,104100.0,104090.0,1.6190927]
[1748744471753,1.23176006,104100.0,104090.0,1.6190927]
[1748744471895,1.23176006,104100.0,104090.0,1.6250927]
[1748744472131,1.22408315,104100.0,104090.0,1.6250927]
[1748744472538,1.21640624,104100.0,104090.0,1.6250927]
[1748744472963,1.20872933,104100.0,104090.0,1.6250927]
[1748744473385,1.20105242,104100.0,104090.0,1.6250927]
[1748744473800,1.19337551,104100.0,104090.0,1.6250927]
[1748744474117,1.1856986,104100.0,104090.0,1.62509045]
[1748744474613,1.17802169,104100.0,104090.0,1.61837189]
[1748744474954,1.17034478,104100.0,104090.0,1.61837189]
[1748744475158,0.72199449,104100.0,104090.0,1.83771062]
[1748744475461,0.71431758,104100.0,104090.0,1.83771062]
[1748744475617,0.71431758,104100.0,104090.0,1.82471062]
[1748744475618,0.70664067,104100.0,104090.0,1.82471062]
[1748744475815,0.70664067,104100.0,104090.0,1.83171062]
[1748744476019,0.69896376,104100.0,104090.0,1.84071062]
[1748744476423,0.69128685,104100.0,104090.0,1.84071062]
[1748744476646,0.69128685,104100.0,104090.0,1.84742898]
[1748744476854,0.68361017,104100.0,104090.0,1.84742898]
[1748744477253,0.67593349,104100.0,104090.0,1.84742898]
[1748744477457,0.67593349,104100.0,104090.0,1.8474259]
[1748744477657,0.25530133,104100.0,104090.0,1.84742591]
[1748744477858,0.20537816,104100.0,104090.0,1.84742591]
[1748744478067,0.19770148,104100.0,104090.0,1.84742589]
[1748744478239,0.19770148,104100.0,104090.0,1.84742615]
[1748744478442,0.1900248,104100.0,104090.0,1.84742615]
[1748744478966,0.18234812,104100.0,104090.0,1.84742345]
[1748744479333,0.17467144,104100.0,104090.0,1.84742345]
[1748744479698,0.09899298,104100.0,104090.0,1.84742113]
[1748744479847,0.05099837,104100.0,104090.0,1.84742113]
[1748744480051,0.00973621,104100.0,104090.0,1.84742113]
[1748744480252,0.00973621,104100.0,104090.0,1.84742168]
[1748744480494,0.00205953,104100.0,104090.0,1.84742167]
[1748744480661,0.00205953,104100.0,104090.0,1.84071062]
[1748744480864,0.4953,104170.0,104160.0,0.220813]
[1748744481071,0.49578867,104170.0,104160.0,0.72961642]
[1748744481476,0.49578867,104170.0,104160.0,0.72961656]
[1748744482086,0.49578867,104170.0,104160.0,0.72961779]
[1748744482321,0.8201473,104170.0,104160.0,0.72961778]
[1748744483089,0.8201473,104170.0,104160.0,0.73061719]
[1748744483301,0.49578867,104170.0,104160.0,0.73061868]
[1748744483514,0.8201473,104170.0,104160.0,0.73061868]
[1748744483886,0.8201473,104170.0,104160.0,0.7239073]
[1748744484055,0.8201473,104170.0,104160.0,0.73061867]
[1748744484563,1.14450593,104170.0,104160.0,0.73061836]
[1748744485458,1.14450593,104170.0,104160.0,0.73061933]
[1748744485670,1.14450593,104170.0,104160.0,0.7239073]
[1748744485879,1.14450593,104170.0,104160.0,0.32437922]
[1748744486066,1.14450593,104170.0,104160.0,0.73025922]
[1748744486534,1.14450593,104170.0,104160.0,0.32438054]
[1748744486756,1.14450593,104170.0,104160.0,0.73026054]
[1748744486890,1.14450593,104170.0,104160.0,0.7302617]
[1748744488318,1.14450593,104170.0,104160.0,0.73026333]
[1748744488522,1.14450593,104170.0,104160.0,0.3176673]
[1748744488523,1.15410488,104170.0,104160.0,0.3176673]
[1748744488723,1.25201053,104170.0,104150.0,0.21121669]
[1748744488927,0.60329308,104170.0,104160.0,0.220813]
[1748744489183,1.16370392,104170.0,104160.0,0.528493]
[1748744489767,1.14450593,104170.0,104160.0,0.528493]
[1748744490303,1.15410479,104170.0,104160.0,0.528493]
[1748744490695,1.14450593,104170.0,104160.0,0.532493]
[1748744490899,1.15410479,104170.0,104160.0,0.535493]
[1748744491182,1.15410479,104170.0,104160.0,0.532493]
[1748744491602,1.15410479,104170.0,104160.0,0.529493]
[1748744492049,1.15410479,104170.0,104160.0,0.531493]
[1748744492250,1.14450593,104170.0,104160.0,0.531493]
[1748744492666,1.15410479,104170.0,104160.0,0.531493]
[1748744492888,1.16370383,104170.0,104160.0,0.531493]
[1748744493309,1.15410479,104170.0,104160.0,0.531493]
[1748744494291,1.14450593,104170.0,104160.0,0.531493]
[1748744494499,1.26581483,104170.0,104160.0,0.223813]
[1748744494730,1.25621533,104170.0,104160.0,0.531413]
[1748744494934,1.26581483,104170.0,104160.0,0.531413]
[1748744495358,1.17330361,104170.0,104160.0,0.531413]
[1748744495738,1.16370411,104170.0,104160.0,0.531413]
[1748744496362,1.15410488,104170.0,104160.0,0.531413]
[1748744496560,1.16370401,104170.0,104160.0,0.531413]
[1748744496970,0.83934538,104170.0,104160.0,0.528413]
[1748744497173,0.83934538,104170.0,104160.0,0.529413]
[1748744497329,0.82974625,104170.0,104160.0,0.529413]
[1748744498033,1.16370401,104170.0,104160.0,0.529413]
[1748744498593,0.67800333,104170.0,104160.0,0.529413]
[1748744498798,0.68760274,104170.0,104160.0,0.529373]
[1748744499003,0.67800333,104170.0,104160.0,0.221813]
[1748744499188,0.67800333,104170.0,104160.0,0.529373]
[1748744499388,0.02928607,104170.0,104160.0,0.529373]
[1748744499590,0.67800324,104170.0,104160.0,0.529373]
[1748744500481,0.68760265,104170.0,104160.0,0.529333]
[1748744500694,0.76692146,104170.0,104160.0,0.22854949]
[1748744500903,0.96851546,104170.0,104160.0,0.22855005]
[1748744501107,0.95891633,104170.0,104160.0,0.5168692]
[1748744501370,0.95891633,104170.0,104160.0,0.52646953]
[1748744501524,0.9493171,104170.0,104160.0,0.19974877]
[1748744501723,0.93971769,104170.0,104160.0,0.52646971]
[1748744502249,0.20208221,104170.0,104160.0,0.52933346]
[1748744502460,0.85079947,104170.0,104160.0,0.5360695]
[1748744503148,0.85079947,104170.0,104160.0,0.53606888]
[1748744503346,0.85079947,104170.0,104160.0,0.53606874]
[1748744503698,0.00048867,104170.0,104160.0,0.53606874]
[1748744503898,0.67140479,104170.0,104160.0,0.5456687]
[1748744504130,0.69720206,104170.0,104160.0,0.5456687]
[1748744504497,0.69720206,104170.0,104160.0,0.54566786]
[1748744505603,0.65880479,104170.0,104160.0,0.54566786]
[1748744505832,0.35364424,104170.0,104160.0,0.54566786]
[1748744505993,0.35364424,104170.0,104160.0,0.54566769]
[1748744506309,0.35364424,104170.0,104160.0,0.54566765]
[1748744506768,0.35364424,104170.0,104160.0,0.54566764]
[1748744506966,0.35364424,104170.0,104160.0,0.53893342]
[1748744507077,0.35364424,104170.0,104160.0,0.54566752]
[1748744507561,0.35364424,104170.0,104160.0,0.54566753]
[1748744508709,0.35364424,104170.0,104160.0,0.54566761]
[1748744509070,0.02928561,104170.0,104160.0,0.54566761]
[1748744509276,0.35364424,104170.0,104160.0,0.54566761]
[1748744509634,0.35364424,104170.0,104160.0,0.5456679]
[1748744510143,0.36324347,104170.0,104160.0,0.53893342]
[1748744510300,0.34404511,104170.0,104160.0,0.5456679]
[1748744510498,0.35364415,104170.0,104160.0,0.5456679]
[1748744510704,0.00048867,104170.0,104160.0,0.54566869]
[1748744510908,0.00048867,104170.0,104160.0,0.53893342]
[1748744510909,0.33444625,104170.0,104160.0,0.53893342]
[1748744511113,0.33444625,104170.0,104160.0,0.54566867]
[1748744511298,0.34404538,104170.0,104160.0,0.54566867]
[1748744511493,0.76211919,104170.0,104160.0,0.54554867]
[1748744511779,0.75251978,104170.0,104160.0,0.54554932]
[1748744512817,0.75251978,104170.0,104160.0,0.54554951]
[1748744513244,0.76211919,104170.0,104160.0,0.23141342]
[1748744513461,0.76211919,104170.0,104160.0,0.54551001]
[1748744513844,0.68760274,104170.0,104160.0,0.54551001]
[1748744514261,0.68760274,104170.0,104160.0,0.53877342]
[1748744514500,0.67800333,104170.0,104160.0,0.54551021]
[1748744514686,0.68760283,104170.0,104160.0,0.54551021]
[1748744514959,0.68760283,104170.0,104160.0,0.54551106]
[1748744515481,0.68760283,104170.0,104160.0,0.54551107]
[1748744516246,0.67800333,104170.0,104160.0,0.54551107]
[1748744516442,0.67800333,104170.0,104160.0,0.5455134]
[1748744516669,0.68760283,104170.0,104160.0,0.5455134]
[1748744516805,0.67800333,104170.0,104160.0,0.54551356]
[1748744517227,0.3536447,104170.0,104160.0,0.54551356]
[1748744517728,0.68760283,104170.0,104160.0,0.54551356]
[1748744517912,0.68760283,104170.0,104160.0,0.54551546]
[1748744518565,0.68760283,104170.0,104160.0,0.53877342]
[1748744518782,0.68760283,104170.0,104160.0,0.54551759]
[1748744520119,0.68760283,104170.0,104160.0,0.53877342]
[1748744520365,0.68760283,104170.0,104160.0,0.54551768]
[1748744520570,0.68760283,104170.0,104160.0,0.23815768]
[1748744520776,0.68760283,104170.0,104160.0,0.54539768]
[1748744521013,0.95891549,104170.0,104160.0,0.535798]
[1748744521222,0.95891549,104170.0,104160.0,0.52619795]
[1748744521424,0.94931636,104170.0,104160.0,0.53579838]
[1748744521637,0.94931636,104170.0,104160.0,0.22855858]
[1748744521992,0.94931636,104170.0,104160.0,0.23815891]
[1748744522243,0.8603986,104170.0,104160.0,0.23815891]
[1748744522418,0.8603986,104170.0,104140.0,0.28985843]
[1748744522419,0.01920168,104150.0,104140.0,0.21122195]
[1748744522757,0.01920168,104150.0,104140.0,0.22082432]
[1748744522758,0.3561624,104150.0,104140.0,0.22082432]
[1748744522925,0.362763,104150.0,104140.0,0.52806432]
[1748744523103,0.35316156,104150.0,104140.0,0.52806432]
[1748744523301,0.36255505,104150.0,104140.0,0.52806432]
[1748744523505,0.36255505,104150.0,104140.0,0.52802432]
[1748744524054,0.35295389,104150.0,104140.0,0.53202432]
[1748744524351,0.38175783,104150.0,104140.0,0.52542251]
[1748744524511,0.3721563,104150.0,104140.0,0.53502432]
[1748744525358,0.36255505,104150.0,104140.0,0.53502432]
[1748744525776,0.35295389,104150.0,104140.0,0.53502432]
[1748744526334,0.64151939,104150.0,104140.0,0.007]
[1748744526544,0.95627769,104150.0,104140.0,0.007]
[1748744526745,0.95627769,104150.0,104140.0,0.21825379]
[1748744526966,0.63191906,104150.0,104140.0,0.22785597]
[1748744527174,0.54498553,104150.0,104140.0,0.23745787]
[1748744527406,0.54498553,104150.0,104140.0,0.23745805]
[1748744527795,0.56444566,104150.0,104140.0,0.23445805]
[1748744528414,0.56444566,104150.0,104140.0,0.23045805]
[1748744528659,0.56444566,104150.0,104140.0,0.24106004]
[1748744528952,0.56444566,104150.0,104140.0,0.24306004]
[1748744529171,0.56444566,104150.0,104140.0,0.23345805]
[1748744529519,0.56444566,104150.0,104140.0,0.24306004]
[1748744530367,0.56444566,104150.0,104140.0,0.25203573]
[1748744530368,0.24008703,104150.0,104140.0,0.25203573]
[1748744530537,0.56444566,104150.0,104140.0,0.25203573]
[1748744530949,0.56444566,104150.0,104140.0,0.25203561]